Workbook

Sheet Sheet1
G2: r = | H2: =((J19-100)/100+1)*I19 -> 1120000 | I2: Ms-1
G3: ks = | H3: =((J20-100)/100+1)*I20 -> 1734000 | I3: s-1 | Q3: kq | R3: ks | S3: r | T3: time step
A4: t(s) | B4: [Ru(Bpy)32+] (M) | C4: [Ru(Bpy)32+*](M) | D4: [Cu2+](M) | G4: kq = | H4: =((J21-100)/100+1)*I21*H8 -> 504000 | I4: M-1s-1
A5: 0 | B5: =A_0/(r_2-r_1)*((r_2-k_f)*EXP(-r_1*A5)-(r_1-k_f)*EXP(-r_2*A5)) -> 1e-05 | C5: =k_f*A_0/(r_2-r_1)*(EXP(-r_1*A5)-EXP(-r_2*A5)) -> 0 | D5: =A_0*(1-r_2/(r_2-r_1)*EXP(-r_1*A5)+r_1/(r_2-r_1)*EXP(-r_2*A5)) -> 0
A6: =A5+t_s -> 6e-08 | B6: 9.382067094e-06 | C6: 6.084232115e-07 | D6: 9.509694893e-09
A7: 1.2e-07 | B7: 8.859629906e-06 | C7: 1.104701701e-06 | D7: 3.566839255e-08 | G7: [Ru(Bpy)32+]= | H7: 1e-05 | I7: M
A8: 1.8e-07 | B8: 8.416223752e-06 | C8: 1.508386403e-06 | D8: 7.538984494e-08 | G8: [Cu2+]= | H8: 0.1 | I8: M
A9: 2.4e-07 | B9: 8.038242992e-06 | C9: 1.835630984e-06 | D9: 1.261260249e-07 | G9: Time step= | H9: =((J26-100)/100+1)*I26 -> 6e-08 | I9: s | X9: 40
A10: 3e-07 | B10: 7.714444348e-06 | C10: 2.099782052e-06 | D10: 1.857736002e-07
A11: 3.6e-07 | B11: 7.435536513e-06 | C11: 2.311866831e-06 | D11: 2.525966563e-07
A12: 4.2e-07 | B12: 7.19384105e-06 | C12: 2.480996106e-06 | D12: 3.251628444e-07
A13: 4.8e-07 | B13: 6.983012207e-06 | C13: 2.614697171e-06 | D13: 4.022906222e-07
A14: 5.4e-07 | B14: 6.797805405e-06 | C14: 2.719188934e-06 | D14: 4.830056612e-07
A15: 6e-07 | B15: 6.633885946e-06 | C15: 2.799609227e-06 | D15: 5.665048273e-07
A16: 6.6e-07 | B16: 6.487670956e-06 | C16: 2.860202625e-06 | D16: 6.52126419e-07
A17: 7.2e-07 | B17: 6.356198785e-06 | C17: 2.904475638e-06 | D17: 7.393255766e-07
A18: 7.8e-07 | B18: 6.237021095e-06 | C18: 2.935324942e-06 | D18: 8.276539632e-07
A19: 8.4e-07 | B19: 6.128113697e-06 | C19: 2.955143326e-06 | D19: 9.167429767e-07 | I19: 1000000 | J19: 112
A20: 9e-07 | B20: 6.027802877e-06 | C20: 2.965907246e-06 | D20: 1.006289878e-06 | I20: 1700000 | J20: 102
A21: 9.6e-07 | B21: 5.93470452e-06 | C21: 2.969249152e-06 | D21: 1.096046328e-06 | I21: 56000000 | J21: 9
A22: 1.02e-06 | B22: 5.847673815e-06 | C22: 2.966517264e-06 | D22: 1.185808921e-06 | H22: r1 = | I22: =1/2*(k_f+k_r+k_2+SQRT((k_f+k_r+k_2)^2-4*k_f*k_2)) -> 3180519.564
A23: 1.08e-06 | B23: 5.765763688e-06 | C23: 2.958824956e-06 | D23: 1.275411356e-06 | H23: r2 = | I23: =1/2*(k_f+k_r+k_2-SQRT((k_f+k_r+k_2)^2-4*k_f*k_2)) -> 177480.4364
A24: 1.14e-06 | B24: 5.688190466e-06 | C24: 2.94709156e-06 | D24: 1.364717974e-06 | I24: M
A25: 1.2e-06 | B25: 5.614305498e-06 | C25: 2.932076088e-06 | D25: 1.453618415e-06 | I25: M
A26: 1.26e-06 | B26: 5.543571713e-06 | C26: 2.914405082e-06 | D26: 1.542023204e-06 | I26: 1e-06 | J26: 6
A27: 1.32e-06 | B27: 5.475544247e-06 | C27: 2.894595644e-06 | D27: 1.629860109e-06
A28: 1.38e-06 | B28: 5.409854434e-06 | C28: 2.873074447e-06 | D28: 1.71707112e-06
A29: 1.44e-06 | B29: 5.346196579e-06 | C29: 2.850193456e-06 | D29: 1.803609965e-06
A30: 1.5e-06 | B30: 5.284317032e-06 | C30: 2.826242912e-06 | D30: 1.889440056e-06
A31: 1.56e-06 | B31: 5.224005159e-06 | C31: 2.80146206e-06 | D31: 1.974532781e-06
A32: 1.62e-06 | B32: 5.165085873e-06 | C32: 2.776048017e-06 | D32: 2.05886611e-06
A33: 1.68e-06 | B33: 5.107413479e-06 | C33: 2.750163092e-06 | D33: 2.142423428e-06
A34: 1.74e-06 | B34: 5.050866571e-06 | C34: 2.723940847e-06 | D34: 2.225192582e-06
A35: 1.8e-06 | B35: 4.995343827e-06 | C35: 2.697491089e-06 | D35: 2.307165084e-06
A36: 1.86e-06 | B36: 4.940760529e-06 | C36: 2.670904007e-06 | D36: 2.388335464e-06
A37: 1.92e-06 | B37: 4.887045691e-06 | C37: 2.644253584e-06 | D37: 2.468700724e-06
A38: =A37+t_s -> 1.98e-06 | B38: 4.834139681e-06 | C38: 2.617600422e-06 | D38: 2.548259897e-06
A39: 2.04e-06 | B39: 4.781992261e-06 | C39: 2.590994066e-06 | D39: 2.627013673e-06
A40: 2.1e-06 | B40: 4.730560964e-06 | C40: 2.564474936e-06 | D40: 2.7049641e-06
A41: 2.16e-06 | B41: 4.679809755e-06 | C41: 2.538075916e-06 | D41: 2.78211433e-06
A42: 2.22e-06 | B42: 4.629707923e-06 | C42: 2.511823665e-06 | D42: 2.858468412e-06
A43: 2.28e-06 | B43: 4.580229165e-06 | C43: 2.485739712e-06 | D43: 2.934031123e-06
A44: 2.34e-06 | B44: 4.531350835e-06 | C44: 2.459841343e-06 | D44: 3.008807822e-06
A45: 2.4e-06 | B45: 4.48305331e-06 | C45: 2.434142352e-06 | D45: 3.082804338e-06
A46: 2.46e-06 | B46: 4.435319481e-06 | C46: 2.408653647e-06 | D46: 3.156026872e-06
A47: 2.52e-06 | B47: 4.388134324e-06 | C47: 2.383383759e-06 | D47: 3.228481917e-06
A48: 2.58e-06 | B48: 4.341484547e-06 | C48: 2.358339259e-06 | D48: 3.300176194e-06
A49: 2.64e-06 | B49: 4.295358298e-06 | C49: 2.333525105e-06 | D49: 3.371116598e-06
A50: 2.7e-06 | B50: 4.249744923e-06 | C50: 2.308944925e-06 | D50: 3.441310151e-06
A51: 2.76e-06 | B51: 4.204634772e-06 | C51: 2.284601257e-06 | D51: 3.510763971e-06
A52: 2.82e-06 | B52: 4.160019025e-06 | C52: 2.260495738e-06 | D52: 3.579485236e-06
A53: 2.88e-06 | B53: 4.115889567e-06 | C53: 2.23662927e-06 | D53: 3.647481163e-06
A54: 2.94e-06 | B54: 4.072238864e-06 | C54: 2.213002149e-06 | D54: 3.714758987e-06
A55: 3e-06 | B55: 4.029059879e-06 | C55: 2.189614178e-06 | D55: 3.781325944e-06
A56: 3.06e-06 | B56: 3.986345989e-06 | C56: 2.166464753e-06 | D56: 3.847189257e-06
A57: 3.12e-06 | B57: 3.944090927e-06 | C57: 2.143552946e-06 | D57: 3.912356127e-06
A58: 3.18e-06 | B58: 3.902288721e-06 | C58: 2.120877556e-06 | D58: 3.976833723e-06
A59: 3.24e-06 | B59: 3.860933659e-06 | C59: 2.09843717e-06 | D59: 4.040629171e-06
A60: 3.3e-06 | B60: 3.820020246e-06 | C60: 2.076230199e-06 | D60: 4.103749555e-06
A61: 3.36e-06 | B61: 3.779543178e-06 | C61: 2.054254913e-06 | D61: 4.166201909e-06
A62: 3.42e-06 | B62: 3.739497317e-06 | C62: 2.032509473e-06 | D62: 4.227993209e-06
A63: 3.48e-06 | B63: 3.699877668e-06 | C63: 2.010991953e-06 | D63: 4.289130379e-06
A64: 3.54e-06 | B64: 3.660679362e-06 | C64: 1.989700358e-06 | D64: 4.34962028e-06
A65: 3.6e-06 | B65: 3.621897645e-06 | C65: 1.968632642e-06 | D65: 4.409469714e-06
A66: 3.66e-06 | B66: 3.583527863e-06 | C66: 1.947786719e-06 | D66: 4.468685418e-06
A67: 3.72e-06 | B67: 3.545565454e-06 | C67: 1.927160478e-06 | D67: 4.527274069e-06
A68: 3.78e-06 | B68: 3.508005938e-06 | C68: 1.906751786e-06 | D68: 4.585242277e-06
A69: 3.84e-06 | B69: =A_0/(r_2-r_1)*((r_2-k_f)*EXP(-r_1*A69)-(r_1-k_f)*EXP(-r_2*A69)) -> 3.470844911e-06 | C69: =k_f*A_0/(r_2-r_1)*(EXP(-r_1*A69)-EXP(-r_2*A69)) -> 1.886558501e-06 | D69: =A_0*(1-r_2/(r_2-r_1)*EXP(-r_1*A69)+r_1/(r_2-r_1)*EXP(-r_2*A69)) -> 4.642596588e-06
A70: =A69+t_s -> 3.9e-06 | B70: 3.434078041e-06 | C70: 1.866578474e-06 | D70: 4.699343484e-06
A71: 3.96e-06 | B71: 3.397701059e-06 | C71: 1.846809558e-06 | D71: 4.755489382e-06
A72: 4.02e-06 | B72: 3.361709759e-06 | C72: 1.827249608e-06 | D72: 4.811040633e-06
A73: 4.08e-06 | B73: 3.326099993e-06 | C73: 1.807896484e-06 | D73: 4.866003523e-06
A74: 4.14e-06 | B74: 3.290867665e-06 | C74: 1.788748059e-06 | D74: 4.920384276e-06
A75: 4.2e-06 | B75: 3.256008736e-06 | C75: 1.769802216e-06 | D75: 4.974189048e-06
A76: 4.26e-06 | B76: 3.221519214e-06 | C76: 1.751056851e-06 | D76: 5.027423934e-06
A77: 4.32e-06 | B77: 3.187395157e-06 | C77: 1.732509877e-06 | D77: 5.080094966e-06
A78: 4.38e-06 | B78: 3.153632669e-06 | C78: 1.71415922e-06 | D78: 5.132208111e-06
A79: 4.44e-06 | B79: 3.120227901e-06 | C79: 1.696002825e-06 | D79: 5.183769274e-06
A80: 4.5e-06 | B80: 3.087177046e-06 | C80: 1.678038655e-06 | D80: 5.234784299e-06
A81: 4.56e-06 | B81: 3.054476342e-06 | C81: 1.660264689e-06 | D81: 5.285258969e-06
A82: 4.62e-06 | B82: 3.022122069e-06 | C82: 1.642678926e-06 | D82: 5.335199005e-06
A83: 4.68e-06 | B83: 2.990110548e-06 | C83: 1.625279385e-06 | D83: 5.384610067e-06
A84: 4.74e-06 | B84: 2.95843814e-06 | C84: 1.608064101e-06 | D84: 5.433497759e-06
A85: 4.8e-06 | B85: 2.927101247e-06 | C85: 1.591031131e-06 | D85: 5.481867622e-06
A86: 4.86e-06 | B86: 2.89609631e-06 | C86: 1.57417855e-06 | D86: 5.52972514e-06
A87: 4.92e-06 | B87: 2.865419808e-06 | C87: 1.557504452e-06 | D87: 5.57707574e-06
A88: 4.98e-06 | B88: 2.83506826e-06 | C88: 1.541006951e-06 | D88: 5.62392479e-06
A89: 5.04e-06 | B89: 2.805038218e-06 | C89: 1.52468418e-06 | D89: 5.670277601e-06
A90: 5.1e-06 | B90: 2.775326277e-06 | C90: 1.508534291e-06 | D90: 5.716139431e-06
A91: 5.16e-06 | B91: 2.745929064e-06 | C91: 1.492555456e-06 | D91: 5.76151548e-06
A92: 5.22e-06 | B92: 2.716843244e-06 | C92: 1.476745864e-06 | D92: 5.806410891e-06
A93: 5.28e-06 | B93: 2.688065518e-06 | C93: 1.461103725e-06 | D93: 5.850830757e-06
A94: 5.34e-06 | B94: 2.65959262e-06 | C94: 1.445627266e-06 | D94: 5.894780115e-06
A95: 5.4e-06 | B95: 2.63142132e-06 | C95: 1.430314733e-06 | D95: 5.938263947e-06
A96: 5.46e-06 | B96: 2.603548424e-06 | C96: 1.415164391e-06 | D96: 5.981287185e-06
A97: 5.52e-06 | B97: 2.57597077e-06 | C97: 1.400174523e-06 | D97: 6.023854707e-06
A98: 5.58e-06 | B98: 2.54868523e-06 | C98: 1.385343429e-06 | D98: 6.06597134e-06
A99: 5.64e-06 | B99: 2.52168871e-06 | C99: 1.370669429e-06 | D99: 6.107641861e-06
A100: 5.7e-06 | B100: 2.494978147e-06 | C100: 1.356150859e-06 | D100: 6.148870994e-06
A101: 5.76e-06 | B101: 2.468550513e-06 | C101: 1.341786072e-06 | D101: 6.189663415e-06
A102: =A101+t_s -> 5.82e-06 | B102: 2.442402811e-06 | C102: 1.32757344e-06 | D102: 6.230023749e-06
A103: 5.88e-06 | B103: 2.416532074e-06 | C103: 1.313511352e-06 | D103: 6.269956574e-06
A104: 5.94e-06 | B104: 2.390935369e-06 | C104: 1.299598213e-06 | D104: 6.309466417e-06
A105: 6e-06 | B105: 2.365609794e-06 | C105: 1.285832446e-06 | D105: 6.348557759e-06
A106: 6.06e-06 | B106: 2.340552476e-06 | C106: 1.27221249e-06 | D106: 6.387235033e-06
A107: 6.12e-06 | B107: 2.315760574e-06 | C107: 1.258736801e-06 | D107: 6.425502625e-06
A108: 6.18e-06 | B108: 2.291231276e-06 | C108: 1.24540385e-06 | D108: 6.463364874e-06
A109: 6.24e-06 | B109: 2.266961801e-06 | C109: 1.232212125e-06 | D109: 6.500826073e-06
A110: 6.3e-06 | B110: 2.242949397e-06 | C110: 1.219160131e-06 | D110: 6.537890472e-06
A111: 6.36e-06 | B111: 2.21919134e-06 | C111: 1.206246388e-06 | D111: 6.574562272e-06
A112: 6.42e-06 | B112: 2.195684936e-06 | C112: 1.193469432e-06 | D112: 6.610845632e-06
A113: 6.48e-06 | B113: 2.17242752e-06 | C113: 1.180827813e-06 | D113: 6.646744667e-06
A114: 6.54e-06 | B114: 2.149416454e-06 | C114: 1.168320098e-06 | D114: 6.682263448e-06
A115: 6.6e-06 | B115: 2.126649129e-06 | C115: 1.155944869e-06 | D115: 6.717406002e-06
A116: 6.66e-06 | B116: 2.104122963e-06 | C116: 1.143700722e-06 | D116: 6.752176315e-06
A117: 6.72e-06 | B117: 2.081835402e-06 | C117: 1.131586269e-06 | D117: 6.786578329e-06
A118: 6.78e-06 | B118: 2.059783918e-06 | C118: 1.119600136e-06 | D118: 6.820615946e-06
A119: 6.84e-06 | B119: 2.037966011e-06 | C119: 1.107740964e-06 | D119: 6.854293025e-06
A120: 6.9e-06 | B120: 2.016379206e-06 | C120: 1.096007409e-06 | D120: 6.887613386e-06
A121: 6.96e-06 | B121: 1.995021055e-06 | C121: 1.084398139e-06 | D121: 6.920580806e-06
A122: 7.02e-06 | B122: 1.973889138e-06 | C122: 1.072911838e-06 | D122: 6.953199025e-06
A123: 7.08e-06 | B123: 1.952981056e-06 | C123: 1.061547204e-06 | D123: 6.98547174e-06
A124: 7.14e-06 | B124: 1.93229444e-06 | C124: 1.050302947e-06 | D124: 7.017402613e-06
A125: 7.2e-06 | B125: 1.911826943e-06 | C125: 1.039177794e-06 | D125: 7.048995263e-06
A126: 7.26e-06 | B126: 1.891576244e-06 | C126: 1.028170482e-06 | D126: 7.080253274e-06
A127: 7.32e-06 | B127: 1.871540048e-06 | C127: 1.017279763e-06 | D127: 7.111180189e-06
A128: 7.38e-06 | B128: 1.851716082e-06 | C128: 1.006504402e-06 | D128: 7.141779517e-06
A129: 7.44e-06 | B129: 1.832102097e-06 | C129: 9.958431769e-07 | D129: 7.172054726e-06
A130: 7.5e-06 | B130: 1.812695871e-06 | C130: 9.852948792e-07 | D130: 7.20200925e-06
A131: 7.56e-06 | B131: 1.793495201e-06 | C131: 9.748583125e-07 | D131: 7.231646486e-06
A132: 7.62e-06 | B132: 1.774497911e-06 | C132: 9.645322934e-07 | D132: 7.260969795e-06
A133: 7.68e-06 | B133: =A_0/(r_2-r_1)*((r_2-k_f)*EXP(-r_1*A133)-(r_1-k_f)*EXP(-r_2*A133)) -> 1.755701847e-06 | C133: =k_f*A_0/(r_2-r_1)*(EXP(-r_1*A133)-EXP(-r_2*A133)) -> 9.543156509e-07 | D133: =A_0*(1-r_2/(r_2-r_1)*EXP(-r_1*A133)+r_1/(r_2-r_1)*EXP(-r_2*A133)) -> 7.289982502e-06
A134: =A133+t_s -> 7.74e-06 | B134: 1.737104877e-06 | C134: 9.442072263e-07 | D134: 7.318687897e-06
A135: 7.8e-06 | B135: 1.718704892e-06 | C135: 9.342058736e-07 | D135: 7.347089234e-06
A136: 7.86e-06 | B136: 1.700499806e-06 | C136: 9.243104584e-07 | D136: 7.375189736e-06
A137: 7.92e-06 | B137: 1.682487554e-06 | C137: 9.145198587e-07 | D137: 7.402992587e-06
A138: 7.98e-06 | B138: 1.664666094e-06 | C138: 9.048329643e-07 | D138: 7.430500942e-06
A139: 8.04e-06 | B139: 1.647033404e-06 | C139: 8.952486766e-07 | D139: 7.457717919e-06
A140: 8.1e-06 | B140: 1.629587486e-06 | C140: 8.857659088e-07 | D140: 7.484646605e-06
A141: 8.16e-06 | B141: 1.61232636e-06 | C141: 8.763835857e-07 | D141: 7.511290054e-06
A142: 8.22e-06 | B142: 1.59524807e-06 | C142: 8.671006431e-07 | D142: 7.537651286e-06
A143: 8.28e-06 | B143: 1.578350679e-06 | C143: 8.579160286e-07 | D143: 7.563733292e-06
A144: 8.34e-06 | B144: 1.561632271e-06 | C144: 8.488287005e-07 | D144: 7.589539029e-06
A145: 8.4e-06 | B145: 1.54509095e-06 | C145: 8.398376283e-07 | D145: 7.615071422e-06
A146: 8.46e-06 | B146: 1.528724839e-06 | C146: 8.309417926e-07 | D146: 7.640333368e-06
A147: 8.52e-06 | B147: 1.512532084e-06 | C147: 8.221401844e-07 | D147: 7.665327732e-06
A148: 8.58e-06 | B148: 1.496510848e-06 | C148: 8.134318058e-07 | D148: 7.690057346e-06
A149: 8.64e-06 | B149: 1.480659314e-06 | C149: 8.048156692e-07 | D149: 7.714525017e-06
A150: 8.7e-06 | B150: 1.464975685e-06 | C150: 7.962907975e-07 | D150: 7.738733518e-06
A151: 8.76e-06 | B151: 1.449458181e-06 | C151: 7.878562241e-07 | D151: 7.762685595e-06
A152: 8.82e-06 | B152: 1.434105045e-06 | C152: 7.795109924e-07 | D152: 7.786383963e-06
A153: 8.88e-06 | B153: 1.418914533e-06 | C153: 7.712541562e-07 | D153: 7.80983131e-06
A154: 8.94e-06 | B154: 1.403884925e-06 | C154: 7.630847791e-07 | D154: 7.833030296e-06
A155: 9e-06 | B155: 1.389014515e-06 | C155: 7.550019347e-07 | D155: 7.85598355e-06
A156: 9.06e-06 | B156: 1.374301618e-06 | C156: 7.470047064e-07 | D156: 7.878693676e-06
A157: 9.12e-06 | B157: 1.359744564e-06 | C157: 7.390921875e-07 | D157: 7.901163249e-06
A158: 9.18e-06 | B158: 1.345341703e-06 | C158: 7.312634805e-07 | D158: 7.923394816e-06
A159: 9.24e-06 | B159: 1.331091402e-06 | C159: 7.235176977e-07 | D159: 7.9453909e-06
A160: 9.3e-06 | B160: 1.316992046e-06 | C160: 7.158539608e-07 | D160: 7.967153994e-06
A161: 9.36e-06 | B161: 1.303042034e-06 | C161: 7.082714008e-07 | D161: 7.988686566e-06
A162: 9.42e-06 | B162: 1.289239785e-06 | C162: 7.007691577e-07 | D162: 8.009991058e-06
A163: 9.48e-06 | B163: 1.275583734e-06 | C163: 6.933463808e-07 | D163: 8.031069885e-06
A164: 9.54e-06 | B164: 1.262072332e-06 | C164: 6.860022284e-07 | D164: 8.051925439e-06
A165: 9.6e-06 | B165: 1.248704048e-06 | C165: 6.787358677e-07 | D165: 8.072560084e-06
A166: =A165+t_s -> 9.66e-06 | B166: 1.235477365e-06 | C166: 6.715464746e-07 | D166: 8.09297616e-06
A167: 9.72e-06 | B167: 1.222390783e-06 | C167: 6.64433234e-07 | D167: 8.113175983e-06
A168: 9.78e-06 | B168: 1.209442819e-06 | C168: 6.573953392e-07 | D168: 8.133161842e-06
A169: 9.84e-06 | B169: 1.196632004e-06 | C169: 6.50431992e-07 | D169: 8.152936004e-06
A170: 9.9e-06 | B170: 1.183956885e-06 | C170: 6.435424029e-07 | D170: 8.172500712e-06
A171: 9.96e-06 | B171: 1.171416025e-06 | C171: 6.367257906e-07 | D171: 8.191858184e-06
A172: 1.002e-05 | B172: 1.159008002e-06 | C172: 6.299813821e-07 | D172: 8.211010616e-06
A173: 1.008e-05 | B173: 1.146731409e-06 | C173: 6.233084125e-07 | D173: 8.229960178e-06
A174: 1.014e-05 | B174: 1.134584854e-06 | C174: 6.167061253e-07 | D174: 8.248709021e-06
A175: 1.02e-05 | B175: 1.122566959e-06 | C175: 6.101737716e-07 | D175: 8.26725927e-06
A176: 1.026e-05 | B176: 1.110676361e-06 | C176: 6.037106108e-07 | D176: 8.285613028e-06
A177: 1.032e-05 | B177: 1.098911713e-06 | C177: 5.973159099e-07 | D177: 8.303772378e-06
A178: 1.038e-05 | B178: 1.087271679e-06 | C178: 5.909889438e-07 | D178: 8.321739377e-06
A179: 1.044e-05 | B179: 1.075754941e-06 | C179: 5.847289949e-07 | D179: 8.339516064e-06
A180: 1.05e-05 | B180: 1.064360191e-06 | C180: 5.785353535e-07 | D180: 8.357104455e-06
A181: 1.056e-05 | B181: 1.053086139e-06 | C181: 5.724073172e-07 | D181: 8.374506544e-06
A182: 1.062e-05 | B182: 1.041931505e-06 | C182: 5.663441911e-07 | D182: 8.391724304e-06
A183: 1.068e-05 | B183: 1.030895024e-06 | C183: 5.603452876e-07 | D183: 8.408759688e-06
A184: 1.074e-05 | B184: 1.019975446e-06 | C184: 5.544099264e-07 | D184: 8.425614627e-06
A185: 1.08e-05 | B185: 1.009171531e-06 | C185: 5.485374345e-07 | D185: 8.442291034e-06
A186: 1.086e-05 | B186: 9.984820554e-07 | C186: 5.42727146e-07 | D186: 8.458790799e-06
A187: 1.092e-05 | B187: 9.879058058e-07 | C187: 5.36978402e-07 | D187: 8.475115792e-06
A188: 1.098e-05 | B188: 9.774415834e-07 | C188: 5.312905505e-07 | D188: 8.491267866e-06
A189: 1.104e-05 | B189: 9.670882014e-07 | C189: 5.256629467e-07 | D189: 8.507248852e-06
A190: 1.11e-05 | B190: 9.568444858e-07 | C190: 5.200949523e-07 | D190: 8.523060562e-06
A191: 1.116e-05 | B191: 9.46709275e-07 | C191: 5.145859358e-07 | D191: 8.538704789e-06
A192: 1.122e-05 | B192: 9.366814197e-07 | C192: 5.091352728e-07 | D192: 8.554183308e-06
A193: 1.128e-05 | B193: 9.267597827e-07 | C193: 5.037423449e-07 | D193: 8.569497872e-06
A194: 1.134e-05 | B194: 9.16943239e-07 | C194: 4.984065406e-07 | D194: 8.58465022e-06
A195: 1.14e-05 | B195: 9.072306753e-07 | C195: 4.93127255e-07 | D195: 8.59964207e-06
A196: 1.146e-05 | B196: 8.976209903e-07 | C196: 4.879038893e-07 | D196: 8.61447512e-06
A197: 1.152e-05 | B197: =A_0/(r_2-r_1)*((r_2-k_f)*EXP(-r_1*A197)-(r_1-k_f)*EXP(-r_2*A197)) -> 8.881130942e-07 | C197: =k_f*A_0/(r_2-r_1)*(EXP(-r_1*A197)-EXP(-r_2*A197)) -> 4.827358512e-07 | D197: =A_0*(1-r_2/(r_2-r_1)*EXP(-r_1*A197)+r_1/(r_2-r_1)*EXP(-r_2*A197)) -> 8.629151055e-06
A198: =A197+t_s -> 1.158e-05 | B198: 8.787059088e-07 | C198: 4.776225547e-07 | D198: 8.643671537e-06
A199: 1.164e-05 | B199: 8.693983675e-07 | C199: 4.725634198e-07 | D199: 8.658038213e-06
A200: 1.17e-05 | B200: 8.601894147e-07 | C200: 4.67557873e-07 | D200: 8.672252712e-06
A201: 1.176e-05 | B201: 8.510780061e-07 | C201: 4.626053466e-07 | D201: 8.686316647e-06
... 4 more rows

Sheet Sheet2

Sheet Sheet3
